bitfinex/quotes_BTCUSD_20241022
["timestamp","ask_amount","ask_price","bid_price","bid_amount"]
[1729590989662,0.298675,66963.0,66955.0,0.023]
[1729590989884,0.151342,66961.0,66957.0,0.001]
[1729590990115,0.149343,66960.0,66957.0,0.001]
[1729590990336,0.149343,66960.0,66955.0,0.172354]
[1729590990801,0.149352,66956.0,66951.0,0.149362]
[1729590991028,0.149362,66952.0,66947.0,0.15437]
[1729590991257,0.298711,66955.0,66946.0,0.62804968]
[1729590991530,0.298717,66953.0,66946.0,0.62804968]
[1729590991747,0.149358,66953.0,66948.0,0.149367]
[1729590991967,0.149358,66953.0,66948.0,0.154367]
[1729590992194,0.149361,66952.0,66949.0,0.023]
[1729590992433,0.298712,66954.0,66949.0,0.023]
[1729590992434,0.149363,66951.0,66949.0,0.023]
[1729590992673,0.149363,66951.0,66948.0,0.023]
[1729590993163,0.298717,66953.0,66948.0,0.177369]
[1729590993421,0.298711,66955.0,66949.0,0.006]
[1729590993659,0.001,66952.0,66950.0,0.023]
[1729590993898,0.149359,66953.0,66949.0,0.023]
[1729590994195,0.001,66951.0,66949.0,0.023]
[1729590994686,0.001,66951.0,66950.0,0.149365]
[1729590994917,0.001,66951.0,66950.0,0.023]
[1729590995164,0.001,66951.0,66949.0,0.023]
[1729590995426,0.52918915,66950.0,66946.0,0.00165]
[1729590995671,0.149371,66947.0,66946.0,0.00165]
[1729590998232,0.149371,66947.0,66946.0,0.00565]
[1729590999258,0.149371,66947.0,66946.0,0.00865]
[1729590999905,0.149371,66947.0,66946.0,0.00565]
[1729591000130,0.04454086,66950.0,66947.0,0.023]
[1729591000351,0.38780173,66953.0,66947.0,0.023]
[1729591000352,0.149363,66951.0,66947.0,0.023]
[1729591000611,0.14936,66952.0,66947.0,0.17237]
[1729591001298,0.004,66950.0,66947.0,0.17237]
[1729591001507,0.04454086,66954.0,66947.0,0.023]
[1729591001736,0.149361,66952.0,66948.0,0.149368]
[1729591001970,0.155361,66952.0,66947.0,0.024]
[1729591002211,0.149363,66951.0,66947.0,0.172371]
[1729591002429,0.04454086,66954.0,66947.0,0.172371]
[1729591002430,0.005,66950.0,66949.0,0.149367]
[1729591002645,0.005,66950.0,66949.0,0.023]
[1729591002866,0.298717,66953.0,66950.0,0.023]
[1729591003324,0.007,66952.0,66950.0,0.023]
[1729591003572,0.007,66952.0,66947.0,0.024]
[1729591003787,0.14936,66952.0,66948.0,0.37202168]
[1729591004025,0.14936,66952.0,66950.0,0.001]
[1729591004255,0.008,66953.0,66950.0,0.001]
[1729591004481,0.14936,66952.0,66950.0,0.002]
[1729591004716,0.149362,66951.0,66950.0,0.001]
[1729591005370,0.149365,66950.0,66949.0,0.023]
[1729591006510,0.154365,66950.0,66949.0,0.023]
[1729591007652,0.158365,66950.0,66949.0,0.023]
[1729591013377,0.009,66950.0,66949.0,0.023]
[1729591013580,0.009,66950.0,66949.0,0.1031]
[1729591014197,0.158365,66950.0,66949.0,0.1031]
[1729591014625,0.158365,66950.0,66949.0,0.023]
[1729591015271,0.009,66950.0,66949.0,0.023]
[1729591017684,0.009,66950.0,66949.0,0.174017]
[1729591017898,0.009825,66950.0,66949.0,0.174017]
[1729591018333,0.009825,66950.0,66949.0,0.18521334]
[1729591019204,0.009825,66950.0,66949.0,0.28451334]
[1729591020043,0.009825,66950.0,66949.0,0.57034536]
[1729591020275,0.009825,66950.0,66949.0,0.71930451]
[1729591020985,0.000825,66950.0,66949.0,0.71930451]
[1729591021187,0.000825,66950.0,66949.0,0.72630451]
[1729591021403,0.002825,66950.0,66949.0,0.87716276]
[1729591021829,0.001825,66950.0,66949.0,0.87016276]
[1729591022034,0.001825,66950.0,66949.0,0.87816276]
[1729591022035,0.002825,66950.0,66949.0,0.87816276]
[1729591022495,0.002825,66950.0,66949.0,0.88016276]
[1729591022710,0.002825,66950.0,66949.0,0.87816276]
[1729591022917,0.002825,66950.0,66949.0,0.87816027]
[1729591023128,0.002825,66950.0,66949.0,0.96799229]
[1729591023813,0.002825,66950.0,66949.0,0.88016027]
[1729591024250,0.002825,66950.0,66949.0,0.96799229]
[1729591025134,0.002825,66950.0,66949.0,0.96599229]
[1729591025586,0.002825,66950.0,66949.0,0.87816027]
[1729591025818,0.002825,66950.0,66949.0,0.64847]
[1729591026036,0.002825,66950.0,66949.0,0.82413404]
[1729591026469,0.002825,66950.0,66949.0,0.82412277]
[1729591028434,0.002825,66950.0,66949.0,0.78566831]
[1729591033603,0.002825,66950.0,66949.0,0.78766831]
[1729591033810,0.002825,66950.0,66949.0,0.92667974]
[1729591035805,0.002825,66950.0,66949.0,0.92467974]
[1729591038231,0.002825,66950.0,66949.0,0.91967974]
[1729591038445,0.002825,66950.0,66949.0,0.92467974]
[1729591038921,0.002825,66950.0,66949.0,0.43940916]
[1729591039142,0.002825,66950.0,66949.0,0.02983258]
[1729591039369,0.15219,66950.0,66949.0,0.01865]
[1729591039582,0.002825,66950.0,66949.0,0.01865]
[1729591040464,0.002825,66950.0,66949.0,0.04165]
[1729591041339,0.002825,66950.0,66949.0,0.32822658]
[1729591041566,0.002825,66950.0,66949.0,0.33940916]
[1729591041787,0.002825,66950.0,66949.0,0.28422698]
[1729591042026,0.002825,66950.0,66949.0,0.17885958]
[1729591042461,0.15219,66950.0,66949.0,0.17885958]
[1729591042708,0.002825,66950.0,66949.0,0.04165]
[1729591042921,0.22759,66950.0,66949.0,0.04165]
[1729591043556,0.002825,66950.0,66949.0,0.17885958]
[1729591044626,0.002825,66950.0,66949.0,0.21329671]
[1729591044836,0.002825,66950.0,66949.0,0.32822658]
[1729591045050,0.002825,66950.0,66949.0,0.33941526]
[1729591051947,0.002825,66950.0,66949.0,0.71602709]
[1729591052206,0.000825,66960.0,66949.0,0.71602709]
[1729591052207,0.000825,66960.0,66959.0,0.52466416]
[1729591052423,0.000825,66960.0,66959.0,0.53585284]
[1729591052654,0.000825,66960.0,66959.0,0.39864326]
[1729591054073,0.001825,66960.0,66959.0,0.40764326]
[1729591054342,0.002825,66960.0,66959.0,0.41564326]
[1729591054579,0.002825,66960.0,66959.0,0.54867899]
[1729591054580,0.001825,66960.0,66959.0,0.54867899]
[1729591054783,0.001825,66960.0,66959.0,0.55767899]
[1729591055060,0.002825,66960.0,66959.0,0.55767899]
[1729591055292,0.002825,66960.0,66959.0,0.41564326]
[1729591055570,0.002825,66960.0,66959.0,0.33774326]
[1729591056022,0.002825,66960.0,66959.0,0.33774311]
[1729591056470,0.002825,66960.0,66959.0,0.04]
[1729591056747,0.002825,66960.0,66959.0,0.017]
[1729591056748,0.152167,66960.0,66959.0,0.017]
[1729591056985,0.327567,66960.0,66959.0,0.017]
[1729591057227,0.47652615,66960.0,66959.0,0.017]
[1729591057676,0.54333859,66960.0,66959.0,0.017]
[1729591057898,0.47652615,66960.0,66959.0,0.017]
[1729591058134,0.54234088,66960.0,66959.0,0.008]
[1729591058623,0.149365,66951.0,66949.0,0.00165]
[1729591058842,0.34324057,66958.0,66954.0,0.22265268]
[1729591059060,0.149364,66951.0,66949.0,0.00165]
[1729591060272,0.149359,66953.0,66949.0,0.00165]
[1729591060511,0.149361,66952.0,66949.0,0.00165]
[1729591060707,0.001,66951.0,66949.0,0.00765]
[1729591060982,0.001,66951.0,66949.0,0.157017]
[1729591061215,0.001,66951.0,66949.0,0.00765]
[1729591061943,0.002,66951.0,66949.0,0.01365]
[1729591062668,0.001,66951.0,66949.0,0.00765]
[1729591062902,0.298697,66958.0,66949.0,0.00165]
[1729591062903,0.34324712,66958.0,66949.0,0.00165]
[1729591063198,0.149358,66953.0,66949.0,0.151016]
[1729591063425,0.149358,66953.0,66949.0,0.152016]
[1729591063656,0.149358,66953.0,66949.0,0.153016]
[1729591063908,0.298703,66956.0,66949.0,0.00365]
[1729591064147,0.04455012,66957.0,66949.0,0.00365]
[1729591064148,0.149361,66952.0,66949.0,0.00265]
[1729591064886,0.149361,66952.0,66949.0,0.00165]
[1729591065360,0.001,66953.0,66949.0,0.00165]
[1729591065573,0.149358,66953.0,66949.0,0.00165]
[1729591066020,0.001,66952.0,66949.0,0.00165]
[1729591066245,0.150361,66952.0,66949.0,0.00165]
[1729591066476,0.14936,66952.0,66949.0,0.00165]
[1729591066700,0.448073,66954.0,66949.0,0.00165]
[1729591066941,0.004,66953.0,66949.0,0.00165]
[1729591067216,0.002,66953.0,66949.0,0.00165]
[1729591067432,0.001,66952.0,66949.0,0.00165]
[1729591067876,0.151358,66953.0,66949.0,0.00165]
[1729591068592,0.149358,66953.0,66949.0,0.00165]
[1729591068825,0.150361,66952.0,66949.0,0.00165]
[1729591069044,0.149365,66950.0,66949.0,0.00165]
[1729591070419,0.149365,66950.0,66949.0,0.00365]
[1729591070640,0.149365,66950.0,66949.0,0.00565]
[1729591070864,0.149362,66952.0,66949.0,0.00565]
[1729591071089,0.299534,66955.0,66950.0,0.22265268]
[1729591071309,0.299533,66955.0,66950.0,0.0158326]
[1729591071535,0.149357,66954.0,66949.0,0.155017]
[1729591072003,0.149357,66954.0,66949.0,0.153017]
[1729591072225,0.299533,66955.0,66949.0,0.00365]
[1729591072442,0.149356,66954.0,66949.0,0.00365]
[1729591072667,0.149358,66953.0,66949.0,0.00365]
[1729591072894,0.149358,66953.0,66949.0,0.00165]
[1729591073136,0.299533,66955.0,66949.0,0.00165]
[1729591073137,0.149361,66952.0,66949.0,0.00165]
[1729591073392,0.003825,66955.0,66949.0,0.00165]
[1729591073615,0.151357,66954.0,66949.0,0.151016]
[1729591074068,0.001,66953.0,66949.0,0.00165]
[1729591074264,0.002,66954.0,66949.0,0.151015]
[1729591074725,0.149356,66954.0,66949.0,0.151015]
[1729591075231,0.000825,66955.0,66950.0,0.149364]
[1729591075466,0.000825,66955.0,66954.0,0.149356]
[1729591075719,0.003825,66955.0,66954.0,0.149356]
[1729591075944,0.000825,66955.0,66954.0,0.149356]
[1729591076855,0.002825,66955.0,66954.0,0.149356]
[1729591077529,0.003825,66955.0,66952.0,0.023]
[1729591077778,0.003825,66955.0,66952.0,0.172358]
[1729591077994,0.001825,66955.0,66952.0,0.172358]
[1729591078513,0.001825,66955.0,66954.0,0.001]
[1729591078745,0.000825,66955.0,66954.0,0.001]
[1729591078955,0.000825,66955.0,66953.0,0.149357]
[1729591079186,0.000825,66955.0,66954.0,0.001]
[1729591079409,0.150179,66955.0,66954.0,0.001]
[1729591079875,0.150179,66955.0,66952.0,0.001]
[1729591080110,0.000825,66955.0,66952.0,0.001]
[1729591080345,0.000825,66955.0,66950.0,0.023]
[1729591080346,0.000825,66955.0,66953.0,0.001]
[1729591080554,0.15018,66955.0,66950.0,0.172364]
[1729591080815,0.15018,66955.0,66954.0,0.001]
[1729591081569,0.000825,66955.0,66954.0,0.001]
[1729591081800,0.000825,66955.0,66954.0,0.002]
[1729591082030,0.000825,66955.0,66954.0,0.001]
[1729591082950,0.000825,66955.0,66954.0,0.002]
[1729591083150,0.150179,66955.0,66954.0,0.002]
[1729591083890,0.14988954,66955.0,66954.0,0.002]
[1729591084788,0.14988954,66955.0,66954.0,0.001]
[1729591085044,0.15388954,66955.0,66950.0,0.023]
[1729591085268,0.00453554,66955.0,66951.0,0.149362]
[1729591085488,0.00853554,66955.0,66950.0,0.172364]
[1729591085717,0.14936,66953.0,66950.0,0.05966107]
[1729591085939,0.15789054,66955.0,66950.0,0.05966107]
[1729591086202,0.149356,66954.0,66950.0,0.05966107]
[1729591086441,0.00453554,66955.0,66950.0,0.05966107]
[1729591086655,0.00853554,66955.0,66950.0,0.20902507]
[1729591087393,0.00453554,66955.0,66950.0,0.172364]
[1729591087620,0.00453554,66955.0,66951.0,0.149362]
[1729591087867,0.00053554,66955.0,66951.0,0.149362]
[1729591088087,0.00453554,66955.0,66951.0,0.149362]
[1729591088603,0.00053554,66955.0,66951.0,0.149362]
[1729591088821,0.00453554,66955.0,66951.0,0.149362]
[1729591089498,0.00853554,66955.0,66951.0,0.149362]
[1729591090007,0.00674763,66955.0,66952.0,0.04072189]
[1729591090257,0.00674763,66955.0,66954.0,0.28656558]
[1729591090495,0.00674763,66955.0,66954.0,0.31255239]
[1729591090740,0.00674763,66955.0,66954.0,0.30956558]
[1729591090976,0.004,66955.0,66954.0,0.4446838]
[1729591091446,0.008,66955.0,66954.0,0.5427838]
[1729591091689,0.004,66955.0,66954.0,0.5427838]
[1729591091945,0.000825,66960.0,66959.0,0.149345]
[1729591092195,0.000825,66960.0,66959.0,0.50775933]
[1729591092432,0.000825,66960.0,66959.0,0.60047286]
[1729591093128,0.000825,66960.0,66959.0,0.46326328]
[1729591093360,0.001825,66960.0,66959.0,0.47026328]
[1729591093595,0.000825,66960.0,66959.0,0.46326328]
[1729591094458,0.000825,66960.0,66959.0,0.349245]
[1729591094917,0.001825,66960.0,66959.0,0.357245]
[1729591095148,0.002825,66960.0,66959.0,0.365245]
[1729591098749,0.002825,66960.0,66959.0,0.039]
[1729591099808,0.152167,66960.0,66959.0,0.016]
[1729591100322,0.002825,66960.0,66959.0,0.016]
[1729591101279,0.002825,66960.0,66959.0,0.3839805]
[1729591101509,0.002825,66960.0,66959.0,0.53793965]
[1729591102940,0.002825,66960.0,66959.0,0.52140415]
[1729591112269,0.002825,66960.0,66959.0,0.51640415]
[1729591113383,0.002825,66960.0,66959.0,0.62640415]
[1729591114483,0.002825,66960.0,66959.0,0.80193781]
[1729591114935,0.002825,66960.0,66959.0,0.71417098]
[1729591115357,0.002825,66960.0,66959.0,0.86313013]
[1729591115791,0.002825,66960.0,66959.0,0.95089696]
[1729591116222,0.002825,66960.0,66959.0,0.95589696]
[1729591119125,0.152167,66960.0,66959.0,0.016]
[1729591119360,0.002825,66960.0,66959.0,0.016]
[1729591119603,0.002825,66960.0,66959.0,0.165345]
[1729591120507,0.002825,66960.0,66959.0,0.32552343]
[1729591123281,0.002825,66960.0,66959.0,0.165345]
[1729591123522,0.002825,66960.0,66959.0,0.30252343]
[1729591124427,0.001825,66960.0,66959.0,0.29452343]
[1729591124667,0.001825,66960.0,66959.0,0.32252343]
[1729591125098,0.001825,66960.0,66959.0,0.31452343]
[1729591125099,0.000825,66960.0,66959.0,0.31452343]
[1729591125336,0.000825,66960.0,66959.0,0.38427977]
[1729591125585,0.000825,66960.0,66959.0,0.5214582]
[1729591125840,0.000825,66960.0,66959.0,0.67541735]
[1729591126094,0.000825,66960.0,66959.0,0.53823892]
[1729591126548,0.000825,66960.0,66959.0,0.64823892]
[1729591126773,0.000825,66960.0,66959.0,0.78541735]
[1729591126991,0.000825,66960.0,66959.0,0.8320802]
[1729591127465,0.000825,66960.0,66959.0,1.14663288]
[1729591127702,0.000825,66965.0,66964.0,0.42451143]
[1729591127957,0.000825,66981.0,66980.0,0.30947643]
[1729591129384,0.000825,66981.0,66980.0,0.172298]
[1729591129671,0.000825,66981.0,66980.0,0.31047643]
[1729591130131,0.000825,66981.0,66980.0,0.173298]
[1729591130350,0.000825,66981.0,66980.0,0.66968917]
[1729591130580,0.000825,66981.0,66980.0,0.74990382]
[1729591131260,0.000825,66981.0,66980.0,0.61172539]
[1729591131500,0.000825,66981.0,66980.0,0.70672539]
[1729591131738,0.000825,66981.0,66980.0,0.71272539]
[1729591131959,0.000825,66981.0,66980.0,0.70672539]
[1729591132252,0.001825,66981.0,66980.0,0.73372539]
[1729591132483,0.001825,66981.0,66980.0,0.71972539]
[1729591132699,0.000825,66981.0,66980.0,0.70672539]
[1729591132937,0.001825,66981.0,66980.0,0.73172539]
[1729591133178,0.001825,66981.0,66980.0,0.71872539]
[1729591134541,0.001825,66981.0,66980.0,0.45025715]
[1729591134794,0.001825,66981.0,66980.0,0.44925715]
[1729591135479,0.002825,66981.0,66980.0,0.46125715]
[1729591135913,0.000825,66981.0,66980.0,0.43625715]
[1729591136159,0.001825,66981.0,66980.0,0.44525715]
[1729591136377,0.002825,66981.0,66980.0,0.57953131]
[1729591139548,0.002825,66981.0,66980.0,0.89160974]
[1729591140273,0.002825,66981.0,66980.0,0.89360974]
[1729591140696,0.002825,66981.0,66980.0,0.89160974]
[1729591144064,0.002825,66981.0,66980.0,0.89360974]
[1729591146165,0.002825,66981.0,66980.0,0.94003779]
[1729591146402,0.000825,66988.0,66987.0,0.462782]
[1729591146631,0.000825,66988.0,66987.0,0.88277058]
[1729591147837,0.000825,66988.0,66987.0,0.91077058]
[1729591148577,0.000825,66988.0,66987.0,0.91277058]
[1729591150965,0.000825,66988.0,66987.0,0.91077058]
[1729591151205,0.000825,66988.0,66987.0,0.91277058]
[1729591152378,0.001692,66991.0,66987.0,0.91277058]
[1729591152379,0.001692,66991.0,66990.0,0.166276]
[1729591152605,0.001692,66991.0,66990.0,0.8906767]
[1729591152828,0.001692,66991.0,66990.0,0.75051358]
[1729591153778,0.001692,66991.0,66990.0,0.76251358]
[1729591154006,0.001692,66991.0,66990.0,0.94605317]
[1729591154237,0.001692,66991.0,66990.0,1.10701232]
[1729591154464,0.001692,66991.0,66990.0,1.06065116]
[1729591154674,0.001692,66991.0,66990.0,1.10701047]
[1729591154887,0.001692,66991.0,66990.0,1.06065116]
[1729591155103,0.001692,66991.0,66990.0,1.04865116]
[1729591155380,0.001692,66991.0,66990.0,1.06265116]
[1729591155580,0.001692,66991.0,66990.0,1.09500969]
[1729591155814,0.001692,66991.0,66990.0,1.08300969]
[1729591156016,0.001692,66991.0,66990.0,1.09700969]
[1729591156681,0.001692,66991.0,66990.0,1.11100969]
[1729591157125,0.001692,66991.0,66990.0,1.08300969]
[1729591157349,0.1,67000.0,66997.0,0.73271686]
[1729591157576,0.1,67000.0,66997.0,1.0146547]
[1729591158258,0.1008707,67015.0,67014.0,0.005]
[1729591158259,0.0176707,67015.0,67014.0,0.005]
[1729591158501,0.0176707,67015.0,67014.0,0.41440043]
[1729591160645,0.0997707,67015.0,67014.0,0.278222]
[1729591160880,0.0997707,67015.0,67014.0,0.41479864]
[1729591161135,0.0997707,67015.0,67014.0,0.41079864]
[1729591161613,0.0997707,67015.0,67014.0,0.41679864]
[1729591161856,0.0997707,67015.0,67014.0,0.40679864]
[1729591162344,0.0997707,67015.0,67014.0,0.40979864]
[1729591162571,0.0997707,67015.0,67014.0,0.283222]
[1729591162800,0.0997707,67015.0,67014.0,0.152222]
[1729591163039,0.0997707,67015.0,67014.0,0.255222]
[1729591163511,0.0997707,67015.0,67014.0,0.252222]
[1729591163953,0.0997707,67015.0,67014.0,0.1]
[1729591164190,0.0997707,67015.0,67014.0,0.249222]
[1729591164906,0.0997707,67015.0,67014.0,0.32320744]
[1729591165131,0.0997707,67015.0,67014.0,0.254222]
[1729591166089,0.0997707,67015.0,67014.0,0.41440043]
[1729591167452,0.0176707,67015.0,67014.0,0.41440043]
[1729591167670,0.0176707,67015.0,67014.0,0.41540043]
[1729591167883,0.0176707,67015.0,67014.0,0.41640043]
[1729591168088,0.0176707,67015.0,67014.0,0.54199664]
[1729591168536,0.0176707,67015.0,67014.0,0.53999664]
[1729591168780,0.0176707,67015.0,67014.0,0.54299664]
[1729591168995,0.0176707,67015.0,67014.0,0.53799664]
[1729591169458,0.0176707,67015.0,67014.0,0.54099664]
[1729591169963,0.0176707,67015.0,67014.0,0.53799664]
[1729591170199,0.0176707,67015.0,67014.0,0.54299664]
[1729591170423,0.0176707,67015.0,67014.0,0.54599664]
[1729591170424,0.0184957,67015.0,67014.0,0.54599664]
[1729591170643,0.0184957,67015.0,67014.0,0.54099664]
[1729591170867,0.0184957,67015.0,67014.0,0.53799664]
[1729591171131,0.0184957,67015.0,67014.0,0.42140043]
[1729591171584,0.0184957,67015.0,67014.0,0.42840043]
[1729591171806,0.0184957,67015.0,67014.0,0.42140043]
[1729591172285,0.0184957,67015.0,67014.0,0.42340043]
[1729591172507,0.0184957,67015.0,67014.0,0.69943137]
[1729591172751,0.0184957,67015.0,67014.0,0.69243137]
[1729591173896,0.0184957,67015.0,67014.0,0.69843137]
[1729591174519,0.0184957,67015.0,67014.0,0.70743137]
[1729591175306,0.0184957,67015.0,67014.0,0.69943137]
[1729591175506,0.0184957,67015.0,67014.0,0.52543137]
[1729591175708,0.0184957,67015.0,67014.0,0.53443137]
[1729591175907,0.0184957,67015.0,67014.0,0.43240043]
[1729591176813,0.0184957,67015.0,67014.0,0.43458126]
[1729591177464,0.0184957,67015.0,67014.0,0.44358126]
[1729591177871,0.0184957,67015.0,67014.0,0.43458126]
[1729591178079,0.0184957,67015.0,67014.0,0.44358126]
[1729591178278,0.0184957,67015.0,67014.0,0.42558126]
[1729591178700,0.0184957,67015.0,67014.0,0.44358126]
[1729591178914,0.0184957,67015.0,67014.0,0.43858126]
[1729591179127,0.0184957,67015.0,67014.0,0.30140283]
[1729591179875,0.0184957,67015.0,67014.0,0.29240283]
[1729591180084,0.0184957,67015.0,67014.0,0.30140283]
[1729591180964,0.0184957,67015.0,67014.0,0.018]
[1729591181243,0.3422157,67015.0,67014.0,0.02919329]
[1729591181467,0.3422157,67015.0,67014.0,0.018]
[1729591181468,0.62835328,67015.0,67014.0,0.018]
[1729591181716,0.49117485,67015.0,67014.0,0.018]
[1729591182137,0.49117485,67015.0,67014.0,0.009]
[1729591182369,0.49117485,67015.0,67014.0,0.011]
[1729591182847,0.49117485,67015.0,67014.0,0.009]
[1729591183067,0.1737,67008.0,67003.0,0.22265268]
[1729591183301,0.1737,67008.0,67004.0,0.01118832]
[1729591183537,0.1737,67008.0,67003.0,0.22265268]
[1729591183538,0.1737,67008.0,67005.0,0.01118832]
[1729591183740,0.1737,67008.0,67006.0,0.01118832]
[1729591183959,0.1737,67008.0,67007.0,0.01118832]
[1729591184373,0.1687,67008.0,67007.0,0.01118832]
[1729591184615,0.1687,67008.0,67004.0,0.001]
[1729591184886,0.1687,67008.0,67007.0,0.0111834]
[1729591185121,0.0184957,67015.0,67007.0,0.14936183]
[1729591185383,0.0184957,67015.0,67008.0,0.0111834]
[1729591185599,0.0184957,67015.0,67009.0,0.0111834]
[1729591185600,0.22535915,67014.0,67009.0,0.0111834]
[1729591185815,0.149225,67013.0,67007.0,0.001]
[1729591186022,0.14895915,67012.0,67008.0,0.01118253]
[1729591186266,0.14895915,67012.0,67009.0,0.01118253]
[1729591186490,0.14895915,67012.0,67007.0,0.001]
[1729591186703,0.14895915,67012.0,67007.0,0.01218253]
[1729591186920,0.14895915,67012.0,67007.0,0.001]
[1729591187137,0.14895915,67012.0,67007.0,0.01218253]
[1729591187418,0.24375915,67012.0,67007.0,0.001]
[1729591187626,0.24375915,67012.0,67007.0,0.01118253]
[1729591187853,0.24375915,67012.0,67006.0,0.01118253]
[1729591188117,0.24375915,67012.0,67005.0,0.37189468]
[1729591188336,0.24375915,67012.0,67006.0,0.01117969]
[1729591188585,0.39298615,67012.0,67006.0,0.01117969]
[1729591188823,0.24475915,67012.0,67006.0,0.01117969]
[1729591189247,0.24375915,67012.0,67006.0,0.01117969]
[1729591189475,0.14923,67011.0,67006.0,0.01117969]
[1729591189716,0.24475915,67012.0,67006.0,0.01117969]
[1729591189975,0.39398715,67012.0,67006.0,0.01117969]
[1729591190216,0.14923,67011.0,67006.0,0.01117969]
[1729591190430,0.24475915,67012.0,67006.0,0.01117969]
[1729591190648,0.24375915,67012.0,67006.0,0.01117969]
[1729591191085,0.001,67011.0,67006.0,0.01117969]
[1729591191342,0.15023,67011.0,67006.0,0.01117969]
[1729591191571,0.14895915,67011.0,67006.0,0.01117969]
[1729591191836,0.14895915,67011.0,67004.0,0.22265268]
[1729591192052,0.29818915,67011.0,67005.0,0.01117728]
[1729591192270,0.149233,67010.0,67006.0,0.01117728]
[1729591192519,0.29918915,67011.0,67005.0,0.01117728]
[1729591192722,0.149233,67010.0,67006.0,0.01117728]
[1729591192935,0.149233,67010.0,67005.0,0.01117728]
[1729591193154,0.14995915,67011.0,67006.0,0.01117728]
[1729591193377,0.14995915,67011.0,67005.0,0.01117728]
[1729591194453,0.14895915,67011.0,67005.0,0.01117728]
[1729591194666,0.14995915,67011.0,67005.0,0.01117728]
[1729591195134,0.14995915,67011.0,67005.0,0.01282528]
[1729591195590,0.14995915,67011.0,67005.0,0.001648]
[1729591195828,0.14995915,67011.0,67005.0,0.01282346]
[1729591196051,0.29918815,67011.0,67005.0,0.01282346]
[1729591196279,0.14995915,67011.0,67005.0,0.01282346]
[1729591196766,0.29918815,67011.0,67005.0,0.01282346]
[1729591197192,0.14995915,67011.0,67005.0,0.01282346]
[1729591198519,0.14995915,67011.0,67006.0,0.08766643]
[1729591199421,0.14895915,67011.0,67006.0,0.08766643]
[1729591200585,0.14895915,67010.0,67005.0,0.001648]
[1729591200832,0.14924,67006.0,67005.0,0.001648]
[1729591201560,0.376667,67009.0,67005.0,0.001648]
[1729591201561,0.0782,67009.0,67005.0,0.001648]
[1729591201794,0.14895915,67008.0,67005.0,0.08931443]
[1729591202474,0.13928621,67015.0,67007.0,0.13701288]
[1729591202711,0.13928621,67015.0,67005.0,0.001648]
[1729591202712,0.24365485,67015.0,67013.0,0.13701288]
[1729591202989,0.0184957,67015.0,67014.0,0.37187468]
[1729591203202,0.0184957,67015.0,67014.0,0.16039643]
[1729591203430,0.0184957,67015.0,67014.0,0.149222]
[1729591203662,0.0184957,67015.0,67014.0,0.43968844]
[1729591203894,0.0184957,67015.0,67014.0,0.18339643]
[1729591204360,0.0194957,67015.0,67014.0,0.18339643]
[1729591205076,0.0184957,67015.0,67014.0,0.19139643]
[1729591205307,0.0184957,67015.0,67014.0,0.18339643]
[1729591205802,0.0184957,67015.0,67014.0,0.19539643]
[1729591206019,0.0184957,67015.0,67014.0,0.18736643]
[1729591206719,0.0184957,67015.0,67014.0,0.20136643]
[1729591207183,0.0184957,67015.0,67014.0,0.31237931]
[1729591207424,0.0184957,67015.0,67014.0,0.32437931]
[1729591207647,0.0184957,67015.0,67014.0,0.32337931]
[1729591207873,0.0184957,67015.0,67014.0,0.31534931]
[1729591208107,0.0184957,67015.0,67014.0,0.18633643]
[1729591208337,0.0184957,67015.0,67014.0,0.32334931]
[1729591208560,0.0184957,67015.0,67014.0,0.31234931]
[1729591209015,0.0184957,67015.0,67014.0,0.32034931]
[1729591209279,0.0915957,67015.0,67014.0,0.32034931]
[1729591210182,0.1064957,67015.0,67014.0,0.32034931]
[1729591211604,0.1064957,67015.0,67014.0,0.18333643]
[1729591213715,0.1064957,67015.0,67014.0,0.16033643]
[1729591215566,0.1064957,67015.0,67014.0,0.149162]
[1729591217673,0.1064957,67015.0,67014.0,0.15932306]
[1729591218612,0.1064957,67015.0,67014.0,0.6688798]
[1729591218843,0.1064957,67015.0,67014.0,0.6788798]
[1729591219322,0.1064957,67015.0,67014.0,0.67264313]
[1729591219604,0.1064957,67015.0,67014.0,0.80965601]
[1729591219829,0.1064957,67015.0,67014.0,0.67264313]
[1729591220065,0.1064957,67015.0,67014.0,0.65864313]
[1729591220300,0.1064957,67015.0,67014.0,0.80965601]
[1729591220538,0.1064957,67015.0,67014.0,0.82160228]
[1729591220785,0.1064957,67015.0,67014.0,0.81960228]
[1729591221024,0.1064957,67015.0,67014.0,0.95661516]
[1729591221253,0.1064957,67015.0,67014.0,0.82065601]
[1729591222418,0.1064957,67015.0,67014.0,0.82265601]
[1729591222651,0.1064957,67015.0,67014.0,0.86534121]
[1729591222884,0.1064957,67015.0,67014.0,0.82265601]
[1729591223126,0.1064957,67015.0,67014.0,0.80965601]
[1729591223368,0.1064957,67015.0,67014.0,0.65664313]
[1729591223609,0.1064957,67015.0,67014.0,0.63808221]
[1729591224070,0.1064957,67015.0,67014.0,0.62408221]
[1729591224300,0.1064957,67015.0,67014.0,0.63808221]
[1729591225958,0.1064957,67015.0,67014.0,0.17132306]
[1729591226410,0.1064957,67015.0,67014.0,0.30833594]
[1729591226911,0.1064957,67015.0,67014.0,0.29433594]
[1729591227379,0.1064957,67015.0,67014.0,0.11016106]
[1729591227612,0.1064957,67015.0,67014.0,0.27638306]
[1729591227834,0.1064957,67015.0,67014.0,0.40439594]
[1729591228346,0.1064957,67015.0,67014.0,0.53104781]
[1729591228562,0.1064957,67015.0,67014.0,0.43539594]
[1729591231578,0.1064957,67015.0,67014.0,0.43704594]
[1729591232519,0.1064957,67015.0,67014.0,0.02781106]
[1729591232745,0.1064957,67015.0,67014.0,0.27703306]
[1729591233182,0.1064957,67015.0,67014.0,0.41404594]
[1729591234115,0.1064957,67015.0,67014.0,0.43704594]
[1729591234859,0.1064957,67015.0,67014.0,0.5632074]
[1729591235113,0.1064957,67015.0,67014.0,0.43704594]
[1729591236069,0.1064957,67015.0,67014.0,0.82171797]
[1729591236299,0.1064957,67015.0,67014.0,0.80571797]
[1729591236544,0.1064957,67015.0,67014.0,0.85227693]